[Event "FIDE WCCC G10 2018"]
[Site "Santiago de Compostela"]
[Date "2018.11.05"]
[Round "2"]
[White "Khanyl, Chuluuntuya"]
[Black "Chen, Yining"]
[Result "0-1"]
[ECO "D03"]
[WhiteElo "1276"]
[BlackElo "1457"]
[Annotator "NA RC"]
[PlyCount "114"]
[EventDate "2018.11.04"]
[EventType "swiss"]
[EventCountry "ESP"]
[SourceTitle "playchess.com"]
[Source "ChessBase"]
[SourceQuality "1"]
[TimeControl "40/5400+30:1800+30"]

1. d4 {[%emt 0:00:00]} d5 {[%emt 0:00:00]} 2. Nf3 {[%emt 0:00:00]} Nf6 {[%emt 0:00:00]} 3. Bg5 {[%emt 0:00:00]} Ne4 {[%emt 0:01:10]} 4. Bh4 {[%emt 0:00:24]} g6 {[%emt 0:01:38]} 5. Nbd2 {[%emt 0:01:02]} Bg7 {[%emt 0:01:00]} 6. e3 {[%emt 0:02:01]} Nxd2 {[%emt 0:02:15]} 7. Qxd2 {[%emt 0:01:53]} O-O {[%emt 0:00:56]} 8. h3 {[%emt 0:01:01]} c5 {[%emt 0:01:14]} 9. c3 {[%emt 0:01:23]} b6 {[%emt 0:02:54]} 10. Bd3 {[%emt 0:02:30]} Bb7 {[%emt 0:00:47]} 11. O-O {[%emt 0:00:47]} Nd7 {[%emt 0:01:29]} 12. Rfe1 {[%emt 0:01:01]} Nf6 {[%emt 0:01:14]} 13. Ne5 {[%emt 0:04:35]} Ne4 {[%emt 0:01:37]} 14. Qc2 {[%emt 0:03:23]} Qc7 {[%emt 0:01:42]} 15. f4 {[%emt 0:01:26]} f6 {[%emt 0:04:12]} 16. Nf3 {[%emt 0:00:44]} c4 {[%emt 0:00:32]} 17. Bxe4 {[%emt 0:03:48]} dxe4 {[%emt 0:00:06]} 18. Nd2 {[%emt 0:01:02]} Qc6 {[%emt 0:03:07]} 19. a4 {[%emt 0:07:30]} e5 {[%emt 0:02:28]} 20. fxe5 {[%emt 0:01:59]} fxe5 {[%emt 0:00:09]} 21. a5 {[%emt 0:08:19]} Rac8 {[%emt 0:04:54]} 22. axb6 {[%emt 0:01:09]} axb6 {[%emt 0:00:10]} 23. Qa4 {[%emt 0:08:01]} b5 {[%emt 0:00:45]} 24. Qb4 {[%emt 0:01:07]} exd4 {[%emt 0:04:00]} 25. cxd4 {[%emt 0:02:31]} Rf5 {[%emt 0:03:38]} 26. Rec1 {[%emt 0:04:59]} Bxd4 {[%emt 0:05:26]} 27. Nf1 {[%emt 0:03:58]} Bg7 {[%emt 0:01:51]} 28. Rd1 {[%emt 0:05:32]} Qc5 {[%emt 0:05:05]} 29. Qxc5 {[%emt 0:04:35]} Rfxc5 {[%emt 0:00:13]} 30. Rd2 {[%emt 0:02:06]} c3 {[%emt 0:00:16]} 31. bxc3 {[%emt 0:07:18]} Bxc3 {[%emt 0:00:04]} 32. Rad1 {[%emt 0:00:23]} Bxd2 {[%emt 0:00:13]} 33. Rxd2 {[%emt 0:00:04]} Rc2 {[%emt 0:00:29]} 34. Rd7 {[%emt 0:01:13]} R8c7 {[%emt 0:00:17]} 35. Rd8+ {[%emt 0:00:28]} Kf7 {[%emt 0:01:24]} 36. Rh8 {[%emt 0:03:09]} Ke6 {[%emt 0:01:02]} 37. Re8+ {[%emt 0:00:12]} Kd5 {[%emt 0:00:31]} 38. Rd8+ {[%emt 0:00:18]} Kc5 39. Rd1 {[%emt 0:01:09]} b4 {[%emt 0:01:35]} 40. Rb1 {[%emt 0:00:00]} Kc4 {[%emt 0:00:00]} 41. Be1 {[%emt 0:01:52]} b3 {[%emt 0:02:13]} 42. Nd2+ {[%emt 0:01:39]} Kd3 {[%emt 0:00:29]} 43. Nxb3 {[%emt 0:08:49]} Kxe3 {[%emt 0:00:23]} 44. Bg3 {[%emt 0:00:47]} Rf7 {[%emt 0:02:15]} 45. Re1+ {[%emt 0:01:23]} Re2 {[%emt 0:00:17]} 46. Rc1 {[%emt 0:01:20]} Rd7 {[%emt 0:03:43]} 47. Ra1 {[%emt 0:02:01]} Bd5 {[%emt 0:02:23]} 48. Rd1 {[%emt 0:04:01]} Be6 {[%emt 0:00:42]} 49. Rxd7 {[%emt 0:00:29]} Bxd7 {[%emt 0:00:01]} 50. Nc5 {[%emt 0:00:30]} Bc6 {[%emt 0:00:15]} 51. Ne6 {[%emt 0:04:42]} Ra2 {[%emt 0:01:32]} 52. Nf8 {[%emt 0:01:30]} Kd3 {[%emt 0:00:26]} 53. Nxh7 {[%emt 0:00:52]} e3 {[%emt 0:00:03]} 54. Bh4 {[%emt 0:00:38]} Rxg2+ {[%emt 0:00:07]} 55. Kf1 {[%emt 0:00:23]} e2+ {[%emt 0:00:03]} 56. Ke1 {[%emt 0:00:10]} Rg1+ {[%emt 0:00:06]} 57. Kf2 {[%emt 0:00:11]} e1=Q# {[%emt 0:00:03]} 0-1

[Event "FIDE WCCC G10 2018"]
[Site "Santiago de Compostela"]
[Date "2018.11.09"]
[Round "5"]
[White "Zhapova, Yana"]
[Black "Novikova, Daria"]
[Result "1-0"]
[ECO "B41"]
[WhiteElo "1821"]
[BlackElo "1339"]
[Annotator "NA RC"]
[PlyCount "120"]
[EventDate "2018.11.04"]
[EventType "swiss"]
[EventCountry "ESP"]
[SourceTitle "playchess.com"]
[Source "ChessBase"]
[SourceQuality "1"]
[TimeControl "40/5400+30:1800+30"]

{[%evp 8,107,41,25,32767,32767,32767,32767,32767,32767,32767,32767,32767,32767,81,32767,88,89,32767,91,77,83,94,85,87,108,90,79,88,86,32767,32767,134,32767,137,32767,120,120,32767,32767,32767,32767,293,253,32767,316,32767,32767,342,350,447,520,509,32767,32767,402,32767,418,32767,32767,604,32767,32767,32767,678,237,214,87,32767,32767,32767,32767,32767,68,112,84,32767,121,233,230,363,339,423,295,286,32767,227,163,217,285,267,32767,318,285,402,342,32767,898,32767,32767,4133,6079]} 1. e4 {[%emt 0:00:00]} c5 {[%emt 0:00:00]} 2. Nf3 {[%emt 0:00:00]} e6 {[%emt 0:00:00]} 3. d4 {[%emt 0:00:00]} cxd4 {[%emt 0:00:04]} 4. Nxd4 {[%emt 0:00:00]} a6 {[%emt 0:00:12]} 5. c4 {[%emt 0:00:15] LiveBook: 2785 Games} Nf6 {[%emt 0:01:14]} 6. Nc3 {[%emt 0:00:13]} Qc7 {[%emt 0:00:31]} 7. a3 {[%emt 0:01:22]} d6 {[%emt 0:00:40]} 8. Be2 {[%emt 0:02:01] B41: Sicilian: Kan Variation: 5 c4} Nbd7 {[%emt 0:00:44]} (8... Be7 9. Be3 O-O 10. O-O b6 11. Qd2 Bb7 12. f3 Nbd7 13. Rac1 Rfc8 14. Rfd1 Qd8 15. b4 Ne5 16. Na4 Nfd7 17. Nb3 Bc6 18. Nb2 Bb7 19. Na4 Bc6 20. Nb2 Bb7 21. Na4 Bc6 {½-½ (21) Ftacnik,L (2548)-Jobava,B (2665) Baku 2016}) 9. Be3 {[%emt 0:01:35]} g6 {[%emt 0:00:23]} 10. Rc1 {[%emt 0:02:57]} Bg7 {[%emt 0:01:15]} 11. O-O {[%emt 0:00:42]} O-O {[%emt 0:00:27]} 12. b4 {[%emt 0:02:24]} b6 {[%emt 0:01:20]} 13. f3 {[%emt 0:01:48]} Bb7 {[%emt 0:00:26]} 14. Qd2 {[%emt 0:01:00]} Ne5 $146 {[%emt 0:01:22]} ({Predecessor:} 14... Rad8 15. Nb3 {1-0 (36) Monnisha,G (2295)-Divya,D (2138) Mumbai 2018}) 15. Rfd1 {[%emt 0:02:22]} Rfd8 {[%emt 0:02:03]} 16. Na4 {[%emt 0:01:50]} Ned7 {[%emt 0:10:02]} 17. Bf1 {[%emt 0:04:49]} Qb8 {[%emt 0:25:56]} 18. Nc3 {[%emt 0:16:07]} a5 {[%emt 0:04:24]} 19. Ndb5 {[%emt 0:03:50]} Ne8 {[%emt 0:05:52]} 20. Bd4 {[%emt 0:07:51]} Nef6 {[%emt 0:06:11]} 21. Qf2 {[%emt 0:04:57]} axb4 {[%emt 0:06:23]} 22. axb4 {[%emt 0:00:14]} d5 {[%emt 0:11:21]} 23. exd5 {[%emt 0:01:14]} exd5 {[%emt 0:01:12]} 24. cxd5 {[%emt 0:00:23]} Bh6 {[%emt 0:10:42]} 25. Be3 {[%emt 0:01:44]} Bf8 {[%emt 0:00:19]} 26. d6 {[%emt 0:01:01]} Ne8 {[%emt 0:01:24]} 27. Bf4 {[%emt 0:02:43]} Ndf6 {[%emt 0:02:06]} 28. Nc7 {[%emt 0:02:49]} ({But not} 28. Qxb6 Ra6 $18) 28... Ra3 {[%emt 0:01:24]} 29. N3b5 {[%emt 0:05:43]} Ra4 {[%emt 0:00:40]} 30. Bg3 {[%emt 0:16:09]} Rd7 {[%emt 0:02:22]} 31. Nxe8 {[%emt 0:01:34]} Nxe8 {[%emt 0:00:39]} 32. Nc7 {[%emt 0:02:13]} Bxd6 {[%emt 0:03:21]} 33. Bxd6 {[%emt 0:02:15]} Rxd6 {[%emt 0:00:22]} 34. Rxd6 {[%emt 0:00:53]} Nxd6 {[%emt 0:00:12]} 35. Qxb6 {[%emt 0:00:18]} Nc8 $2 {[%emt 0:00:33]} (35... Qa7 36. Qxa7 Rxa7) 36. Qc5 $2 {[%emt 0:01:41]} (36. Qf6 Rxb4 37. Qd8+ Kg7 38. Rc5 Bxf3 39. gxf3) 36... Qa7 {[%emt 0:00:31] [#]} 37. Nb5 {[%emt 0:00:36]} (37. Rd1 $1 $18 {is more deadly.}) 37... Qb6 {[%emt 0:00:31]} 38. Qxb6 {[%emt 0:00:53]} Nxb6 {[%emt 0:00:05]} 39. Nd6 {[%emt 0:00:09]} Bd5 {[%emt 0:00:47]} 40. b5 {[%emt 0:00:00]} Ra8 {[%emt 0:00:00]} 41. Ne4 {[%emt 0:01:42]} Kg7 {[%emt 0:00:54]} 42. Kf2 {[%emt 0:00:45]} f5 {[%emt 0:03:58]} (42... Kf8 $16 {is a better defense.} 43. Nf6 Kg7) 43. Rc7+ {[%emt 0:00:33]} Kh6 {[%emt 0:02:22]} (43... Kf8 $142) 44. Nf6 {[%emt 0:03:31]} Bg8 {[%emt 0:00:16]} 45. Nxg8+ {[%emt 0:00:11]} Rxg8 {[%emt 0:00:12]} 46. Ke2 {[%emt 0:02:27]} Rb8 {[%emt 0:04:58]} (46... Re8+ {might work better.} 47. Kf2 Rb8) 47. Kd2 {[%emt 0:07:35]} f4 {[%emt 0:04:09]} 48. Bd3 {[%emt 0:01:26]} Nd5 $18 {[%emt 0:03:48]} 49. Rc5 {[%emt 0:01:14]} Rd8 {[%emt 0:03:06]} 50. Rc4 {[%emt 0:01:58]} Kg5 {[%emt 0:01:59]} 51. Rd4 {[%emt 0:00:08]} Kf6 {[%emt 0:00:46]} 52. Be4 {[%emt 0:00:51]} Ke5 {[%emt 0:00:33]} 53. Rxd5+ {[%emt 0:00:36]} Rxd5+ {[%emt 0:00:17]} 54. Bxd5 {[%emt 0:00:05]} Kxd5 {[%emt 0:00:07]} 55. b6 {[%emt 0:00:08]} Kc6 {[%emt 0:00:06]} 56. Kd3 {[%emt 0:00:07]} Kxb6 {[%emt 0:00:21]} 57. Ke4 {[%emt 0:00:05]} g5 {[%emt 0:00:39]} 58. Kf5 {[%emt 0:00:15]} h6 {[%emt 0:00:12]} 59. Kg6 {[%emt 0:00:03]} Kc5 {[%emt 0:00:09]} 60. Kxh6 {[%emt 0:00:19]} Kd5 1-0

[Event "FIDE WCCC G10 2018"]
[Site "Santiago de Compostela"]
[Date "2018.11.09"]
[Round "5"]
[White "Kleymenova, Valeria"]
[Black "Vlasova, Olesia"]
[Result "1-0"]
[ECO "D00"]
[WhiteElo "1773"]
[BlackElo "1639"]
[Annotator "NA RC"]
[PlyCount "61"]
[EventDate "2018.11.04"]
[EventType "swiss"]
[EventCountry "ESP"]
[SourceTitle "playchess.com"]
[Source "ChessBase"]
[SourceQuality "1"]
[TimeControl "40/5400+30:1800+30"]

1. d4 {[%emt 0:00:00]} d5 {[%emt 0:00:00]} 2. Bf4 {[%emt 0:00:09]} Nf6 {[%emt 0:00:00]} 3. e3 {[%emt 0:00:24]} e6 {[%emt 0:00:13]} 4. Nf3 {[%emt 0:00:19]} c5 {[%emt 0:00:12]} 5. c3 {[%emt 0:00:14]} Nc6 {[%emt 0:00:15]} 6. Bd3 {[%emt 0:00:40]} Bd6 {[%emt 0:00:20]} 7. Bg3 {[%emt 0:00:48]} O-O {[%emt 0:00:35]} 8. Nbd2 {[%emt 0:01:10]} b6 {[%emt 0:00:34]} 9. O-O {[%emt 0:01:05]} Bb7 {[%emt 0:00:26]} 10. Qe2 {[%emt 0:00:55]} Qc7 {[%emt 0:02:38]} 11. Rac1 {[%emt 0:04:22]} Rfd8 {[%emt 0:04:42]} 12. Bh4 {[%emt 0:05:03]} Qe7 {[%emt 0:02:06]} 13. e4 {[%emt 0:04:03]} dxe4 {[%emt 0:06:23]} 14. Nxe4 {[%emt 0:00:16]} Nb8 {[%emt 0:13:12]} 15. Nxf6+ {[%emt 0:02:16]} gxf6 {[%emt 0:00:55]} 16. Ne5 {[%emt 0:01:28]} Nd7 {[%emt 0:16:31]} 17. Qh5 {[%emt 0:01:45]} Kf8 {[%emt 0:01:06]} 18. Qxh7 {[%emt 0:01:44]} Ke8 {[%emt 0:00:16]} 19. Nxf7 {[%emt 0:01:38]} Nf8 {[%emt 0:01:41]} 20. Bb5+ {[%emt 0:00:59]} Rd7 {[%emt 0:04:52]} 21. Nxd6+ {[%emt 0:00:46]} Qxd6 {[%emt 0:03:00]} 22. Qh5+ {[%emt 0:01:51]} Ke7 {[%emt 0:00:49]} 23. Bxd7 {[%emt 0:00:23]} Nxd7 {[%emt 0:00:31]} 24. dxc5 {[%emt 0:01:35]} Qc6 {[%emt 0:00:42]} 25. f3 {[%emt 0:01:15]} Qxc5+ {[%emt 0:00:51]} 26. Qxc5+ {[%emt 0:00:09]} Nxc5 {[%emt 0:00:03]} 27. Rcd1 {[%emt 0:01:18]} Ba6 {[%emt 0:00:26]} 28. Rf2 {[%emt 0:00:25]} Nd3 {[%emt 0:00:38]} 29. Rfd2 {[%emt 0:00:21]} Rh8 {[%emt 0:00:34]} 30. Bg3 {[%emt 0:00:44]} Rd8 {[%emt 0:00:59]} 31. b3 {[%emt 0:00:18]} 1-0

[Event "FIDE WCCC G10 2018"]
[Site "Santiago de Compostela"]
[Date "2018.11.09"]
[Round "5"]
[White "Zakirova, Aisha"]
[Black "Nguyen, Ha Khanh Linh"]
[Result "1/2-1/2"]
[ECO "A84"]
[WhiteElo "1678"]
[BlackElo "1449"]
[Annotator "NA RC"]
[PlyCount "82"]
[EventDate "2018.11.04"]
[EventType "swiss"]
[EventCountry "ESP"]
[SourceTitle "playchess.com"]
[Source "ChessBase"]
[SourceQuality "1"]
[TimeControl "40/5400+30:1800+30"]

1. d4 {[%emt 0:00:00]} f5 {[%emt 0:00:00]} 2. c4 {[%emt 0:00:00]} Nf6 {[%emt 0:00:00]} 3. Nf3 {[%emt 0:00:00]} e6 {[%emt 0:00:03]} 4. g3 {[%emt 0:00:10]} c6 {[%emt 0:00:34]} 5. Bg2 {[%emt 0:00:26]} d5 {[%emt 0:00:25]} 6. O-O {[%emt 0:01:01]} Bd6 {[%emt 0:00:24]} 7. b3 {[%emt 0:00:21]} Qe7 {[%emt 0:00:06]} 8. Bb2 {[%emt 0:00:17]} O-O {[%emt 0:01:28]} 9. Qc1 {[%emt 0:07:06]} a5 {[%emt 0:05:58]} 10. Ba3 {[%emt 0:04:36]} Bxa3 {[%emt 0:00:20]} 11. Nxa3 {[%emt 0:00:33]} Ne4 {[%emt 0:05:09]} 12. Nc2 {[%emt 0:06:23]} Nd7 {[%emt 0:06:22]} 13. Nce1 {[%emt 0:04:35]} e5 {[%emt 0:12:08]} 14. cxd5 {[%emt 0:09:46]} cxd5 {[%emt 0:01:51]} 15. Nd3 {[%emt 0:03:17]} exd4 {[%emt 0:05:33]} 16. Nxd4 {[%emt 0:02:27]} Ndf6 {[%emt 0:09:23]} 17. Qb2 {[%emt 0:11:57]} Bd7 {[%emt 0:05:06]} 18. Rac1 {[%emt 0:01:56]} Rfc8 {[%emt 0:02:29]} 19. Nf4 {[%emt 0:04:01]} b5 {[%emt 0:07:45]} 20. f3 {[%emt 0:18:09]} Nd6 {[%emt 0:04:54]} 21. Qd2 {[%emt 0:01:41]} b4 {[%emt 0:06:05]} 22. Nc2 {[%emt 0:02:45]} Qe5 {[%emt 0:07:56]} 23. Nd4 {[%emt 0:06:08]} Nb5 {[%emt 0:02:16]} 24. Nxb5 {[%emt 0:01:45]} Bxb5 {[%emt 0:00:21]} 25. Rfd1 {[%emt 0:01:40]} Rxc1 {[%emt 0:03:57]} 26. Rxc1 {[%emt 0:00:13]} d4 {[%emt 0:01:57]} 27. Rd1 {[%emt 0:03:02]} Rc8 {[%emt 0:01:24]} 28. Kf2 {[%emt 0:08:49]} g5 {[%emt 0:05:36]} 29. Nd3 {[%emt 0:00:45]} Qe3+ {[%emt 0:01:30]} 30. Qxe3 {[%emt 0:00:29]} dxe3+ {[%emt 0:00:05]} 31. Kxe3 {[%emt 0:00:05]} Nd5+ {[%emt 0:01:47]} 32. Kd2 {[%emt 0:00:51]} Nc3 {[%emt 0:00:37]} 33. Rc1 {[%emt 0:00:25]} Re8 {[%emt 0:00:22]} 34. Bf1 {[%emt 0:00:33]} Nxa2 {[%emt 0:01:38]} 35. Ra1 {[%emt 0:00:24]} Nc3 {[%emt 0:00:40]} 36. Rxa5 {[%emt 0:00:29]} Rd8 {[%emt 0:00:46]} 37. Ke3 {[%emt 0:00:50]} Nd5+ {[%emt 0:00:42]} 38. Kd2 {[%emt 0:00:26]} Nc3 {[%emt 0:00:28]} 39. Ra7 {[%emt 0:00:32]} Be8 {[%emt 0:00:41]} 40. Kc2 {[%emt 0:00:00]} Rc8 {[%emt 0:00:00]} 41. Kd2 {[%emt 0:02:45]} Rb8 {[%emt 0:02:25]} 1/2-1/2

[Event "FIDE WCCC G10 2018"]
[Site "Santiago de Compostela"]
[Date "2018.11.09"]
[Round "5"]
[White "Anupam M Sreekumar"]
[Black "Shefali A N"]
[Result "1/2-1/2"]
[ECO "C44"]
[WhiteElo "1615"]
[BlackElo "1258"]
[Annotator "NA RC"]
[PlyCount "158"]
[EventDate "2018.11.04"]
[EventType "swiss"]
[EventCountry "ESP"]
[SourceTitle "playchess.com"]
[Source "ChessBase"]
[SourceQuality "1"]
[TimeControl "40/5400+30:1800+30"]

1. e4 {[%emt 0:00:00]} e5 {[%emt 0:00:00]} 2. Nf3 {[%emt 0:00:02]} Nc6 {[%emt 0:00:00]} 3. d4 {[%emt 0:00:15]} exd4 {[%emt 0:00:00]} 4. Nxd4 {[%emt 0:00:53]} Nf6 {[%emt 0:00:04]} 5. Nc3 {[%emt 0:00:13]} Bb4 {[%emt 0:00:09]} 6. Nxc6 {[%emt 0:00:25]} bxc6 {[%emt 0:00:05]} 7. Bd3 {[%emt 0:00:22]} O-O {[%emt 0:00:06]} 8. O-O {[%emt 0:00:15]} d5 {[%emt 0:00:08]} 9. exd5 {[%emt 0:00:42]} cxd5 {[%emt 0:00:05]} 10. Bg5 {[%emt 0:00:27]} Be6 11. Qf3 {[%emt 0:01:49]} Be7 {[%emt 0:00:16]} 12. h3 {[%emt 0:00:52]} Rb8 {[%emt 0:02:03]} 13. Rab1 {[%emt 0:00:52]} c5 {[%emt 0:00:10]} 14. Bf5 {[%emt 0:03:10]} d4 {[%emt 0:08:02]} 15. Bxf6 {[%emt 0:07:00]} Bxf6 {[%emt 0:02:16]} 16. Ne4 {[%emt 0:02:17]} Bxa2 {[%emt 0:06:03]} 17. Ra1 {[%emt 0:01:20]} Bc4 {[%emt 0:01:17]} 18. Rfd1 {[%emt 0:03:44]} Qb6 {[%emt 0:04:25]} 19. Ra3 {[%emt 0:13:21]} g6 {[%emt 0:07:02]} 20. b3 {[%emt 0:15:10]} Bb5 {[%emt 0:04:28]} 21. Bd7 {[%emt 0:02:45]} Bg7 {[%emt 0:03:38]} 22. Bxb5 {[%emt 0:01:23]} Qxb5 {[%emt 0:00:17]} 23. Rxa7 {[%emt 0:01:26]} Qb6 {[%emt 0:02:12]} 24. Ra4 {[%emt 0:03:22]} f5 {[%emt 0:09:33]} 25. Nd2 {[%emt 0:03:37]} Qb7 {[%emt 0:01:26]} 26. Qd3 {[%emt 0:01:01]} Kh8 {[%emt 0:01:25]} 27. Rda1 {[%emt 0:02:32]} Ra8 {[%emt 0:01:42]} 28. Nc4 {[%emt 0:04:22]} Rxa4 {[%emt 0:00:57]} 29. Rxa4 {[%emt 0:01:47]} Qe4 {[%emt 0:01:23]} 30. Qd2 {[%emt 0:06:56]} Re8 {[%emt 0:02:36]} 31. Ra1 {[%emt 0:04:41]} Qe7 {[%emt 0:03:25]} 32. Qd3 {[%emt 0:01:48]} Bf6 {[%emt 0:02:38]} 33. Kf1 {[%emt 0:04:47]} Bg5 {[%emt 0:02:43]} 34. Nd2 {[%emt 0:02:42]} Bxd2 {[%emt 0:02:42]} 35. Qxd2 {[%emt 0:00:12]} Qd7 {[%emt 0:02:35]} 36. Re1 {[%emt 0:01:34]} Qb5+ {[%emt 0:00:53]} 37. Kg1 {[%emt 0:00:17]} Qd7 {[%emt 0:00:57]} 38. Qa5 {[%emt 0:00:56]} Rxe1+ {[%emt 0:00:44]} 39. Qxe1 {[%emt 0:00:11]} Qd6 {[%emt 0:00:40]} 40. Qe2 {[%emt 0:00:00]} Qd5 {[%emt 0:00:00]} 41. Qb5 {[%emt 0:01:09]} Qe5 {[%emt 0:02:14]} 42. Kf1 {[%emt 0:00:47]} Qd6 {[%emt 0:00:45]} 43. Qc4 {[%emt 0:04:14]} Kg7 {[%emt 0:01:29]} 44. Qb5 {[%emt 0:00:32]} Kh8 {[%emt 0:00:14]} 45. Ke2 {[%emt 0:01:36]} Qe5+ {[%emt 0:01:31]} 46. Kd1 {[%emt 0:01:17]} Qd6 {[%emt 0:01:11]} 47. Kc1 {[%emt 0:01:41]} Qf4+ {[%emt 0:01:35]} 48. Kb2 {[%emt 0:00:52]} Qd6 {[%emt 0:01:06]} 49. Ka2 {[%emt 0:00:57]} Kg7 {[%emt 0:00:21]} 50. Qb7+ {[%emt 0:00:27]} Kh8 {[%emt 0:00:28]} 51. Qb5 {[%emt 0:00:56]} Kg7 {[%emt 0:00:23]} 52. f3 {[%emt 0:00:10]} f4 {[%emt 0:00:46]} 53. Qb7+ {[%emt 0:00:35]} Kh8 {[%emt 0:00:09]} 54. Qe4 {[%emt 0:00:16]} Kg7 {[%emt 0:00:28]} 55. Kb2 {[%emt 0:01:09]} Kh8 {[%emt 0:00:54]} 56. Kc1 {[%emt 0:00:43]} g5 {[%emt 0:01:41]} 57. Kd2 {[%emt 0:00:26]} h6 {[%emt 0:00:43]} 58. Qe1 {[%emt 0:02:40]} Kg7 {[%emt 0:02:23]} 59. Qe4 {[%emt 0:01:47]} Kh8 {[%emt 0:00:22]} 60. c3 {[%emt 0:03:39]} Qb6 {[%emt 0:02:05]} 61. Qe5+ {[%emt 0:01:02]} Kh7 {[%emt 0:00:35]} 62. Qf5+ {[%emt 0:01:55]} Kh8 {[%emt 0:00:19]} 63. Qc8+ {[%emt 0:01:40]} Kh7 {[%emt 0:00:35]} 64. Qd7+ {[%emt 0:00:15]} Kh8 {[%emt 0:00:49]} 65. Qe8+ {[%emt 0:03:46]} Kg7 {[%emt 0:00:54]} 66. Qe7+ {[%emt 0:00:28]} Kg8 {[%emt 0:01:14]} 67. cxd4 {[%emt 0:01:00]} Qb4+ {[%emt 0:02:44]} 68. Kc2 {[%emt 0:00:46]} Qxd4 {[%emt 0:00:14]} 69. Qe2 {[%emt 0:01:05]} Kf7 {[%emt 0:02:26]} 70. Qc4+ {[%emt 0:02:32]} Qxc4+ {[%emt 0:00:19]} 71. bxc4 {[%emt 0:00:06]} Ke6 {[%emt 0:00:08]} 72. Kb3 {[%emt 0:00:41]} Ke5 {[%emt 0:00:24]} 73. Kc3 {[%emt 0:00:28]} Kf5 {[%emt 0:00:20]} 74. Kd2 {[%emt 0:00:47]} Ke5 {[%emt 0:00:42]} 75. Kd3 {[%emt 0:00:56]} Kf5 {[%emt 0:00:12]} 76. Kc3 {[%emt 0:00:15]} Ke5 {[%emt 0:00:10]} 77. Kd3 {[%emt 0:00:07]} Kf5 {[%emt 0:00:08]} 78. Kc3 {[%emt 0:00:08]} Ke5 {[%emt 0:00:07]} 79. Kd3 {[%emt 0:00:06]} Kf5 {[%emt 0:00:12]} 1/2-1/2

[Event "FIDE WCCC G10 2018"]
[Site "Santiago de Compostela"]
[Date "2018.11.09"]
[Round "5"]
[White "Szczotka, Klara"]
[Black "Zhou, Yafei"]
[Result "0-1"]
[ECO "C18"]
[WhiteElo "1581"]
[BlackElo "1648"]
[Annotator "NA RC"]
[PlyCount "120"]
[EventDate "2018.11.04"]
[EventType "swiss"]
[EventCountry "ESP"]
[SourceTitle "playchess.com"]
[Source "ChessBase"]
[SourceQuality "1"]
[TimeControl "40/5400+30:1800+30"]

1. e4 {[%emt 0:00:00]} e6 {[%emt 0:00:00]} 2. d4 {[%emt 0:00:00]} d5 {[%emt 0:00:00]} 3. Nc3 {[%emt 0:00:00]} Bb4 {[%emt 0:00:00]} 4. e5 {[%emt 0:00:00]} c5 {[%emt 0:00:00]} 5. a3 {[%emt 0:02:32]} Bxc3+ {[%emt 0:00:00]} 6. bxc3 {[%emt 0:00:08]} Ne7 {[%emt 0:00:01]} 7. f4 {[%emt 0:01:28]} Nbc6 {[%emt 0:00:26]} 8. Nf3 {[%emt 0:00:09]} Qa5 {[%emt 0:01:47]} 9. Bd2 {[%emt 0:04:15]} c4 {[%emt 0:02:10]} 10. Qe2 {[%emt 0:04:40]} Qa4 {[%emt 0:02:11]} 11. Be3 {[%emt 0:02:42]} Bd7 {[%emt 0:01:24]} 12. g3 {[%emt 0:03:47]} O-O-O {[%emt 0:02:56]} 13. Bg2 {[%emt 0:01:30]} h6 {[%emt 0:01:17]} 14. Kd2 {[%emt 0:00:23]} Rdg8 {[%emt 0:13:06]} 15. g4 {[%emt 0:10:31]} Nb8 {[%emt 0:12:24]} 16. h4 {[%emt 0:07:14]} Na6 {[%emt 0:00:51]} 17. Rhb1 {[%emt 0:00:52]} Nc6 {[%emt 0:02:40]} 18. Ra2 {[%emt 0:07:16]} Nc7 {[%emt 0:05:54]} 19. Qd1 {[%emt 0:08:01]} f6 {[%emt 0:07:25]} 20. Bh3 {[%emt 0:07:24]} Rf8 {[%emt 0:04:30]} 21. h5 {[%emt 0:02:24]} fxe5 {[%emt 0:12:24]} 22. Nxe5 {[%emt 0:08:04]} Nxe5 {[%emt 0:00:27]} 23. dxe5 {[%emt 0:00:49]} Nb5 {[%emt 0:02:52]} 24. Rb4 {[%emt 0:03:12]} Qa5 {[%emt 0:00:15]} 25. Qa1 {[%emt 0:07:14]} Nc7 {[%emt 0:11:08]} 26. Ke2 {[%emt 0:07:19]} Na6 {[%emt 0:00:56]} 27. Rb1 {[%emt 0:00:08]} Nc5 {[%emt 0:01:28]} 28. Qb2 {[%emt 0:02:19]} b6 {[%emt 0:00:12]} 29. Qb4 {[%emt 0:00:22]} Qxb4 {[%emt 0:03:43]} 30. cxb4 {[%emt 0:00:24]} Ne4 {[%emt 0:00:28]} 31. Bd4 {[%emt 0:02:29]} Rxf4 {[%emt 0:00:31]} 32. Rg1 {[%emt 0:02:53]} Ng5 {[%emt 0:03:31]} 33. Be3 {[%emt 0:01:44]} Nxh3 {[%emt 0:01:02]} 34. Rg3 {[%emt 0:00:20]} Re4 {[%emt 0:00:22]} 35. Rxh3 {[%emt 0:00:11]} d4 {[%emt 0:00:06]} 36. Kd2 {[%emt 0:00:27]} dxe3+ {[%emt 0:00:12]} 37. Rxe3 {[%emt 0:00:07]} Rxe3 {[%emt 0:00:58]} 38. Kxe3 {[%emt 0:00:05]} Rf8 {[%emt 0:00:06]} 39. a4 {[%emt 0:00:28]} Bc6 {[%emt 0:00:31]} 40. b5 {[%emt 0:00:00]} Bd5 {[%emt 0:00:00]} 41. Ra1 {[%emt 0:00:33]} Rf3+ {[%emt 0:00:20]} 42. Ke2 {[%emt 0:00:04]} Kd7 {[%emt 0:01:11]} 43. Rd1 {[%emt 0:00:05]} Rg3 {[%emt 0:00:33]} 44. Rf1 {[%emt 0:00:08]} Ke7 {[%emt 0:00:13]} 45. Rf4 {[%emt 0:00:07]} Ra3 {[%emt 0:00:22]} 46. Kd2 {[%emt 0:00:16]} Rxa4 {[%emt 0:00:19]} 47. Ke2 {[%emt 0:00:23]} Ra5 {[%emt 0:00:23]} 48. g5 {[%emt 0:00:07]} hxg5 {[%emt 0:00:30]} 49. Rg4 {[%emt 0:00:06]} Rxb5 {[%emt 0:00:13]} 50. Rxg5 {[%emt 0:00:06]} Kf7 {[%emt 0:00:04]} 51. Rg3 {[%emt 0:00:12]} a5 {[%emt 0:00:12]} 52. Kd2 {[%emt 0:00:20]} Rc5 {[%emt 0:01:42]} 53. Ra3 {[%emt 0:00:19]} Rc8 {[%emt 0:00:29]} 54. Ra1 {[%emt 0:00:28]} Ra8 {[%emt 0:00:30]} 55. Rb1 {[%emt 0:00:07]} Ra6 {[%emt 0:00:08]} 56. Kc3 {[%emt 0:00:10]} Kg8 {[%emt 0:00:54]} 57. Rg1 {[%emt 0:00:33]} Kh7 {[%emt 0:00:06]} 58. Rg6 {[%emt 0:00:11]} b5 {[%emt 0:00:08]} 59. Kb2 {[%emt 0:00:18]} b4 {[%emt 0:00:16]} 60. Rg3 {[%emt 0:00:07]} a4 {[%emt 0:00:09]} 0-1